Cogmind - Beta 9.6 @@@ ROGUE MODE // 2020.06.21 @ 10:26:59 // AFD2020/Player2 Player: Quantum Result: Destroyed by L-31 Rogue with Katana Performance ------------- Evolutions (1) 500 Regions Visited (2) 400 Robots Destroyed (6) 30 Value Destroyed (103) 103 Prototype IDs (0) 0 Alien Tech Used (0) 0 Bonus (-4) -4 TOTAL SCORE: 1029 Bonus ------- Follower Combat Kills 119 Friendly Fire -123 Cogmind --------- Core Integrity 0/400 Matter 300/300 Energy 100/100 System Corruption 0% Temperature Cool (0) Movement Treading (160) Location -9/Materials Parts ------- > --- POWER (2) -------- (None) > --- PROPULSION (2) --- Light Treads Light Treads > --- UTILITY (2) ------ High-capacity Storage Unit Seismic Analyzer > --- WEAPON (3) ------- (None) > --- INVENTORY (12) --- Light Ion Engine Small Storage Unit Compact Battery (89) Transmission Jammer Improved ECM Suite Peak State ------------ > --- POWER ------------ Ion Engine > --- PROPULSION ------- Aluminum Leg Aluminum Leg > --- UTILITY ---------- Small Storage Unit > --- WEAPON ----------- Assault Rifle Welding Torch > --- INVENTORY -------- Light Ion Engine Light Treads Light Treads [Rating: 6] Favorites ----------- Power Ion Engine Engine Ion Engine Propulsion Aluminum Leg Treads Light Treads Leg Aluminum Leg Utility Small Storage Unit Storage Small Storage Unit Processor Seismic Analyzer Weapon Assault Rifle Ballistic Gun Assault Rifle Special Weapon Welding Torch Build | -11 -10 -9 ------- Run | Scr Mat Mat Slots Evolved 2 | . . 2 Power 1 | . . 1 Propulsion . | . . . Utility . | . . . Weapon 1 | . . 1 Parts Attached 10 | 5 2 3 Power 1 | 1 . . Engine 1 | 1 . . Core . | . . . Reactor . | . . . Propulsion 4 | 2 1 1 Treads 2 | . 1 1 Leg 2 | 2 . . Wheel . | . . . Hover . | . . . Flight . | . . . Utility 3 | 1 . 2 Device . | . . . Storage 2 | 1 . 1 Processor 1 | . . 1 Hackware . | . . . Protection . | . . . Artifact . | . . . Weapon 2 | 1 1 . Energy Gun . | . . . Energy Cannon . | . . . Ballistic Gun 1 | 1 . . Ballistic Cannon . | . . . Launcher . | . . . Special Weapon 1 | . 1 . Impact Weapon . | . . . Slashing Weapon . | . . . Piercing Weapon . | . . . Special Melee Weapon . | . . . Unidentified Prototypes . | . . . Parts Lost 5 | . 4 1 Power 1 | . 1 . Propulsion 2 | . 1 1 Utility . | . . . Weapon 2 | . 2 . Highest Loss Streak 4 | . 4 1 Average Slot Usage (%) 51 | . 62 43 Engine 3 | . 9 . Treads 10 | . 2 16 Leg 13 | . 24 5 Storage 12 | . 14 11 Processor 5 | . . 10 Ballistic Gun 3 | . 8 . Special Weapon 1 | . 2 . Naked Turns . | . . . Heaviest Build 32 | 11 12 32 Greatest Support 40 | 20 20 40 Greatest Overweight (x) 1 | . . 1 Average Overweight (x) . | . . . Largest Inventory Capacity 12 | 6 6 12 Average Capacity 8 | 5 6 10 Most Carried 5 | 3 3 5 Average Carried 2 | 1 2 2 Final Capacity 12 | 6 6 12 Final Carried 5 | 3 2 5 Class Distribution -------------------- 100% | Mutant Dominant Class ---------------- Mutant | -10/Materials Mutant | -9/Materials Resources | -11 -10 -9 ----------- Run | Scr Mat Mat Matter Collected 320 | 207 83 30 Remotely . | . . . Salvage Created 169 | . 169 . Parts 13 | . 13 . Haulers Intercepted . | . . . Recyclers Shooed . | . . . Parts Field Recycled . | . . . Retrieved Matter . | . . . Parts Self-Destructed . | . . . Prevented . | . . . Kills | -11 -10 -9 ------- Run | Scr Mat Mat Combat Hostiles Destroyed 5 | . 5 . Melee 1 | . 1 . Guns 4 | . 4 . Classes Destroyed 3 | . 3 . Builder 1 | . 1 . Swarmer 3 | . 3 . Grunt 2 | . 2 . Best Kill Streak 6 | . 6 . Combat Bots Only 5 | . 5 . Max Kills in Single Turn 1 | . 1 . Gunslinging . | . . . Exploded . | . . . Melee 1 | . 1 . Uniques/NPCs Destroyed . | . . . Combat | -11 -10 -9 -------- Run | Scr Mat Mat Damage Taken 663 | . 572 91 Core 199 | . 146 53 Absorbed by Shields . | . . . Core Remaining (%) 54 | 100 9 . Volleys Fired 22 | . 22 . Largest 1 | . 1 . Hottest 20 | . 20 . Shots Fired 22 | . 22 . Gun 22 | . 22 . Cannon . | . . . Launcher . | . . . Special . | . . . Kinetic 22 | . 22 . Thermal . | . . . Explosive . | . . . Electromagnetic . | . . . Robot Hit Streak 5 | . 5 . Robot Miss Streak 6 | . 6 . Penetration Max . | . . . Secondary Targets . | . . . Shots Hit Robots 12 | . 12 . Core Hits 13 | . 13 . Critical Hits 3 | . 3 . Critical Kills 2 | . 2 . Critical Parts Destroyed . | . . . Melee Attacks . | . . . Impact . | . . . Slashing . | . . . Piercing . | . . . Sneak Attacks . | . . . Combat Hostiles . | . . . Follow-up Attacks . | . . . Damage Inflicted 242 | . 230 12 Guns 216 | . 216 . Cannons . | . . . Explosions . | . . . Melee . | . . . Ramming 26 | . 14 12 Kinetic 216 | . 216 . Thermal . | . . . Explosive . | . . . Electromagnetic . | . . . Impact . | . . . Slashing . | . . . Piercing . | . . . Highest Corruption . | . . . Average Corruption . | . . . Corruption Purged . | . . . Overload Shots . | . . . Overflow Damage . | . . . Projectiles . | . . . Explosions . | . . . Melee . | . . . Knockbacks . | . . . Impact . | . . . Kinetic . | . . . Secondary . | . . . Self-Inflicted Damage 4 | . 4 . Shots . | . . . Rammed 13 | . 12 1 Targets Rammed 14 | . 13 1 Kicked 1 | . 1 . Crushed . | . . . Highest Temperature 5 | . 5 . Average Temperature 3 | . 3 . Received Heat Transfer 244 | . 243 1 Siege Activations . | . . . Robots Corrupted . | . . . Combat Hostiles . | . . . Parts Fried . | . . . Impact Corruptions . | . . . Robots Melted . | . . . Combat Hostiles . | . . . Parts Melted . | . . . Heat Transferred . | . . . Parts Sabotaged . | . . . Parts Stolen . | . . . Parts Stripped . | . . . Power Chain Reactions . | . . . Missiles Intercepted . | . . . Alert | -11 -10 -9 ------- Run | Scr Mat Mat Peak Influence 235 | . 128 235 Average Influence 79 | . 60 139 Maximum Alert Level 1 | . . 1 Low Security (%) 88 | 100 100 73 Level 1 11 | . . 26 Level 2 . | . . . Level 3 . | . . . Level 4 . | . . . Level 5 . | . . . High Security . | . . . Max Security . | . . . Squads Dispatched 3 | . 3 . Investigation 1 | . 1 . Extermination . | . . . Reinforcement 2 | . 2 . Assault . | . . . Garrison . | . . . Intercept . | . . . Construction Impeded . | . . . Haulers Reinforced . | . . . Stealth | -11 -10 -9 --------- Run | Scr Mat Mat Distress Signals 1 | . . 1 Communications Jammed . | . . . Distress Signals . | . . . Times Spotted 27 | . 12 15 Peak Tracking Total 8 | . 5 8 Tactical Retreats . | . . . Traps | -11 -10 -9 ------- Run | Scr Mat Mat Traps Triggered . | . . . Indirectly . | . . . Trap Hack Attempts . | . . . Triggered . | . . . Disarmed . | . . . Reprogrammed . | . . . Reused . | . . . Traps Extracted . | . . . Installed . | . . . Triggered . | . . . Machines | -11 -10 -9 ---------- Run | Scr Mat Mat Machines Disabled . | . . . Max in Single Turn . | . . . Machines Sabotaged . | . . . Garrisons Compromised . | . . . Overloaded Fab Kills . | . . . Fab Network Shutdowns . | . . . Hacking | -11 -10 -9 --------- Run | Scr Mat Mat Machines Accessed . | . . . Terminals . | . . . Fabricators . | . . . Repair Stations . | . . . Recycling Units . | . . . Scanalyzers . | . . . Garrison Access . | . . . Total Hacks . | . . . Successful . | . . . Failed . | . . . Catastrophic . | . . . Database Lockouts . | . . . Manual . | . . . Terminals . | . . . Fabricators . | . . . Repair Stations . | . . . Recycling Units . | . . . Scanalyzers . | . . . Garrison Access . | . . . Terminal Hacks . | . . . Fabricator Hacks . | . . . Repair Station Hacks . | . . . Recycling Unit Hacks . | . . . Scanalyzer . | . . . Garrison Access Hacks . | . . . Unauthorized Hacks . | . . . Terminals . | . . . Fabricators . | . . . Repair Stations . | . . . Recycling Units . | . . . Scanalyzers . | . . . Garrison Access . | . . . Data Cores Recovered . | . . . Used . | . . . Hacking Detections . | . . . Full Trace Events . | . . . Feedback Events . | . . . Feedback Blocked . | . . . Robot Schematics Acquired . | . . . Robots Built . | . . . Matter . | . . . Time . | . . . Total Robot Build Rating . | . . . Part Schematics Acquired . | . . . Parts Built . | . . . Matter . | . . . Time . | . . . Total Part Build Rating . | . . . Parts Repaired . | . . . Time . | . . . Parts Recycled . | . . . Recycled Matter . | . . . Retrieved Matter . | . . . Retrieved Components . | . . . Parts Scanalyzed . | . . . Part Schematics Acquired . | . . . Parts Damaged . | . . . Bothacking | -11 -10 -9 ------------ Run | Scr Mat Mat Used RIF Installer . | . . . Robots Hacked . | . . . Non-combat . | . . . Combat . | . . . Robot Hacks Applied . | . . . Relay Couplers Released . | . . . Robots Rewired . | . . . Allies Hacked . | . . . Hacks Repelled . | . . . Allies | -11 -10 -9 -------- Run | Scr Mat Mat Total Allies 1 | . 1 . Largest Group 1 | . 1 1 Highest-Rated Group 62 | . 55 62 Highest-Rated Ally 62 | . 55 62 Total Orders . | . . . Ally Attacks 21 | . . 21 Total Damage 338 | . . 338 Kills 7 | . . 7 Allies Corrupted . | . . . Allies Melted . | . . . Intel | -11 -10 -9 ------- Run | Scr Mat Mat Robot Analysis Total . | . . . Derelict Logs Recovered . | . . . Drone Launches . | . . . Drone Recoveries . | . . . Exploration | -11 -10 -9 ------------- Run | Scr Mat Mat Turns Passed 535 | 144 155 236 Spaces Moved 324 | 115 72 137 Core 6 | 6 . . Treads 149 | . 12 137 Legs 169 | 109 60 . Wheels . | . . . Hover . | . . . Flight . | . . . Fastest Speed 50 | 50 120 160 Average Speed 139 | 116 126 166 Slowest Speed 180 | 120 160 180 Overloaded Moves . | . . . Propulsion Burnouts . | . . . Robots Hopped . | . . . Cave-ins Triggered . | . . . Exploration Rate (%) 10 | 7 15 9 Regions Visited 2 Branch Regions . Pre-discovered Areas . | . . . Known Exits Taken . | . . . Unknown Exits Taken 2 | 1 1 . Scrap Searched . | . . . Spaces Dug . | . . . Terrain Destroyed . | . . . Melee . | . . . Projectile . | . . . AOE . | . . . Actions | -11 -10 -9 --------- Run | Scr Mat Mat Total 374 | 122 108 144 Wait . | . . . Move 322 | 114 71 137 Hop . | . . . Pick Up 6 | 3 . 3 Fast Attach 7 | 5 1 1 Attach 2 | . 1 1 Detach . | . . . Swap 1 | . . 1 Drop . | . . . Fire 22 | . 22 . Melee . | . . . Ram . | . . . Kick 7 | . 7 . Crush 7 | . 6 1 Escape Stasis . | . . . Rewire . | . . . Trap . | . . . Miscellaneous . | . . . Route ------- -11/Scrapyard -10/Materials -9/Materials History --------- Turn | Location | Event 14 | -11/Scrapyard | Discovered new exit (range 15) 145 | -11/Scrapyard | Entered Materials 252 | -10/Materials | Core integrity fell below 50% 257 | -10/Materials | Discovered new exit (range 13) 281 | -10/Materials | Core integrity fell below 20% 295 | -10/Materials | Lost 4 parts (1p1n2w) 300 | -10/Materials | Entered another Materials area 300 | -9/Materials | Accompanied by 1 ally 300 | -9/Materials | Evolved 2 slots: Power x1, Weapon x1 311 | -9/Materials | Build established: Mutant 516 | -9/Materials | Core integrity fell below 50% 530 | -9/Materials | Core integrity fell below 20% 536 | -9/Materials | Destroyed by L-31 Rogue with Katana Last Messages --------------- Player 2: "Did anyone ever tell you... YOU'RE IN MY WAY, DAMMIT!" 00441_ S-10 Pest destroyed. 00444_ R-06 Scavenger collects Lgt. Assault Rifle. 00448_ R-06 Scavenger collects Flight Unit. 00452_ R-06 Scavenger collects Lgt. Ion Engine. 00463_ K-01 Serf collects debris. 00473_ Acquired 10 matter. 00475_ K-01 Serf collects debris. Player 2: "I've discovered I'm an expert at turning hostiles into non-hostiles." 00499_ Acquired Transmission Jammer. 00503_ Acquired Com. Battery. 00512_ Acquired Imp. ECM Suite. 00518_ Lgt. Treads severed. 00524_ Player 2 attaches Aluminum Leg. 00530_ C-30 ARC bursts open, deploying its payload. 00530_ S-10 Pest unfolds itself. 00532_ K-01 Serf collects debris. 00535_ Slammed into L-31 Rogue. 00536_ R-06 Scavenger collects Aluminum Leg. Map ----- +----------------------------------------------------+ | ?????????????????????????????????????????????????? | | ?????????????????????????????????????????????????? | | ?????????????????????????????????????????????????? | | ?????????????????????????????????????????????????? | | ?????????????????????????????????????????????????? | | ?????????????????????????????????????????????????? | | ?????????????????????????????????????????????????? | | ?????????????????????????????????????????????????? | | ?????????????????????????????????????????????????? | | ?????????????????????????????????????????????????? | | ?????????????????????????????????????????????????? | | ?????????????????????????????????????????????????? | | ?????????????????????????????????????????????????? | | ?????????????????????????????????????????????????? | | ?????????????????????????????????????????????????? | | ???????????????????????##????????????????????????? | | ??????????????????????? ????????????????????????? | | ??????????????????????? #???????????????????????? | | ??????????????????????? #???????????????????????? | | ???????????????????????# #???????????????????????? | | ??????????????????????# ???????????????????????? | | ??????????????????????# ???????????????????????? | | ??????????????????????? ???????????????????????? | | ???????????????????????# #???????????????????????? | | ???????????????????????# #########???????????????? | | ???????????????????????#l@r r + ????????? | | ???????????????????????# #########???????????????? | | ???????????????????????#@#???????????????????????? | | ?????????????????####### ###?????????????????????? | | ?????????????????#!! #?????????????????????? | | ?????????????????# ! #######???????????????? | | ?????????????????#! + ""??????????? | | ?????????????????#!! %## #??????????????? | | ?????????????????# ! % #?? #??????????????? | | ?????????????????#!! ## %##??? +??????????????? | | ?????????????????###### %#?????###??????????????? | | ??????????????????????# #??????????????????????? | | ??????????????????????# #??????????????????????? | | ????????????#????????## "##?????????????????????? | | ????????????? ??###### "%"#?????????????????????? | | ?????????##### ## ######## [ ??????? | | ?????????+ + ""????????? | | ??????????####### ## ##### ! ""????????? | | ???????????????###+### #??#??????????????????? | | ???????????????# ########?????????????????????? | | ???????????????# #????????????????????????????? | | ???????????????# #????????????????????????????? | | ???????????????# #????????????????????????????? | | ???????????????# #????????????????????????????? | | ???????????????# #????????????????????????????? | +----------------------------------------------------+ Best States ------------- Heat Dissipation 28 Energy Generation 10 Energy Capacity 250 Matter Stores 300 Matter Capacity 300 Sight Range 16 Terrain Scan Density 60 Evasion (%) 40 Recoil Reduction 2 Item Schematics ----------------- None Robot Schematics ------------------ None Fabricated ------------ Nothing Alien Tech Used ----------------- None Achievements -------------- Close Call Challenges ------------ None Player 2 | -11 -10 -9 ---------- Run | Scr Mat Mat Slots Evolved 2 | . 2 . Power . | . . . Propulsion 1 | . 1 . Utility . | . . . Weapon 1 | . 1 . Parts Attached 17 | . 9 8 Parts Lost 9 | . . 9 Damage Taken 892 | . 133 759 Core 435 | . 81 354 Player 2/Cogmind (%) 68 | . 35 86 Absorbed by Shields . | . . . Damage Inflicted 338 | . . 338 Player 2/Cogmind (%) 58 | . . 96 Combat Hostiles Destroyed 7 | . . 7 Player 2/Cogmind (%) 58 | . . 100 Game ------ Seed Illumi Sweat Manual? 1 Play Time 00:05:45 Cumulative 22.0 hours Start 2020.06.21 @ 10:21:11 End 2020.06.21 @ 10:26:59 Sessions 1 Manual Loads 0 Difficulty Rogue Special Mode AFD2020/Player2 Game No. 29 Rogue 15 Adventurer 11 Explorer 3 Win Type - Total 0 Types 0/0/0/0/0/0/0 Lore% 14 Gallery% 27 Achievement% 27 Wizard Run 0 Options --------- ASCII 0 Keyboard 1 Movement Arrows Keybinds 0 Fullscreen 0 Font 16/SmallcapsGlow Map View 76x50 Tactical HUD 1 Map Filters NONE Filters NONE Steam 1 RUN: 975d1b58-453e-4655-89f0-bb5168a62a25